[Event "69th GRE-ch 2019"]
[Site "Thessaloniki"]
[Date "2019.11.21"]
[Round "2.3"]
[White "Kourkoulos-Arditis, Stamatis"]
[Black "Koutoukidis, Panagiotis"]
[Result "1-0"]
[ECO "A05"]
[WhiteElo "2457"]
[BlackElo "2412"]
[Annotator "RC"]
[PlyCount "131"]
[EventDate "2019.11.20"]
[EventType "tourn"]
[EventCountry "GRE"]
[SourceTitle "playchess.com"]
[Source "ChessBase"]
[SourceQuality "1"]
[TimeControl "40/5400+30:1800+30"]

1. Nf3 {[%emt 0:00:00]} Nf6 {[%emt 0:00:00]} 2. g3 {[%emt 0:00:00]} d5 {[%emt 0:00:00]} 3. Bg2 {[%emt 0:00:00]} e6 {[%emt 0:00:00]} 4. O-O {[%emt 0:00:00]} Be7 {[%emt 0:00:05]} 5. c4 {[%emt 0:00:00]} O-O {[%emt 0:00:09]} 6. d4 {[%emt 0:00:07]} dxc4 {[%emt 0:00:12]} 7. Qc2 {[%emt 0:00:06]} a6 {[%emt 0:00:05]} 8. a4 {[%emt 0:00:05]} Bd7 {[%emt 0:00:04]} 9. Rd1 {[%emt 0:00:09]} Bc6 {[%emt 0:01:03]} 10. Nc3 {[%emt 0:00:09]} Nbd7 {[%emt 0:05:07]} 11. e4 {[%emt 0:07:09]} b5 {[%emt 0:01:34]} 12. d5 {[%emt 0:01:19]} exd5 {[%emt 0:01:10]} 13. exd5 {[%emt 0:00:04]} Bb7 {[%emt 0:00:20]} 14. Nd4 {[%emt 0:01:49]} Bd6 {[%emt 0:08:37]} 15. Nc6 {[%emt 0:06:33]} Bxc6 {[%emt 0:13:39]} 16. dxc6 {[%emt 0:00:05]} Ne5 {[%emt 0:03:14]} 17. axb5 {[%emt 0:00:40]} axb5 {[%emt 0:00:50]} 18. Rxa8 {[%emt 0:00:29]} Qxa8 {[%emt 0:00:04]} 19. Nxb5 {[%emt 0:01:09]} Qa5 {[%emt 0:12:41]} 20. Nxd6 {[%emt 0:10:19]} cxd6 {[%emt 0:01:33]} 21. Bf4 {[%emt 0:01:43]} Qc5 {[%emt 0:06:41]} 22. Be3 {[%emt 0:00:40]} Qb4 {[%emt 0:01:43]} 23. Qd2 {[%emt 0:04:47]} Qxd2 {[%emt 0:00:50]} 24. Rxd2 {[%emt 0:00:04]} d5 {[%emt 0:05:20]} 25. c7 {[%emt 0:00:22]} Rc8 {[%emt 0:01:33]} 26. Bb6 {[%emt 0:00:09]} c3 {[%emt 0:01:03]} 27. bxc3 {[%emt 0:10:40]} Nc4 {[%emt 0:00:17]} 28. Bxd5 {[%emt 0:00:09]} Nxd2 {[%emt 0:02:34]} 29. Bb7 {[%emt 0:00:04]} Nc4 {[%emt 0:03:21]} 30. Bxc8 {[%emt 0:00:13]} Nxb6 {[%emt 0:00:05]} 31. Bb7 {[%emt 0:00:19]} Kf8 {[%emt 0:01:18]} 32. c4 {[%emt 0:05:16]} Ke7 {[%emt 0:01:44]} 33. c5 {[%emt 0:02:17]} Nc8 {[%emt 0:00:07]} 34. Bxc8 {[%emt 0:00:24]} Ne8 {[%emt 0:00:22]} 35. Kg2 {[%emt 0:12:08]} Nxc7 {[%emt 0:00:15]} 36. Kf3 {[%emt 0:00:03]} Kd8 {[%emt 0:02:13]} 37. Bf5 {[%emt 0:01:03]} Na6 {[%emt 0:12:25]} 38. c6 {[%emt 0:00:28]} Nb8 {[%emt 0:00:19]} 39. Be4 {[%emt 0:00:45]} h6 {[%emt 0:07:40]} 40. Kf4 {[%emt 0:00:00]} Kc7 {[%emt 0:00:00]} 41. Bd5 {[%emt 0:02:29]} Nxc6 {[%emt 0:00:47]} 42. Bxf7 {[%emt 0:00:06]} Kd6 {[%emt 0:00:44]} 43. Ke4 {[%emt 0:03:37]} Ke7 {[%emt 0:06:53]} 44. Bd5 {[%emt 0:00:25]} Nb8 {[%emt 0:00:17]} 45. Kf5 {[%emt 0:00:24]} Nd7 {[%emt 0:00:17]} 46. Kg6 {[%emt 0:00:10]} Kf8 {[%emt 0:00:11]} 47. f4 {[%emt 0:04:35]} Nf6 {[%emt 0:00:26]} 48. Be6 {[%emt 0:00:06]} Ke7 {[%emt 0:01:03]} 49. Bb3 {[%emt 0:03:02]} Kf8 {[%emt 0:00:10]} 50. Kf5 {[%emt 0:00:16]} Ne8 {[%emt 0:01:48]} 51. g4 {[%emt 0:01:19]} Nd6+ {[%emt 0:04:21]} 52. Ke6 {[%emt 0:03:59]} Ne4 {[%emt 0:01:07]} 53. Ke5 {[%emt 0:00:05]} Nf6 {[%emt 0:00:25]} 54. Kf5 {[%emt 0:00:06]} Nh7 {[%emt 0:05:07]} 55. h3 {[%emt 0:18:30]} Nf6 {[%emt 0:00:28]} 56. h4 {[%emt 0:00:04]} Ke7 {[%emt 0:05:02]} 57. g5 {[%emt 0:01:51]} hxg5 {[%emt 0:05:18]} 58. fxg5 {[%emt 0:00:12]} Nd7 {[%emt 0:00:17]} 59. h5 {[%emt 0:16:01]} Kf8 {[%emt 0:03:28]} 60. Bc4 {[%emt 0:11:04]} Ke7 {[%emt 0:04:22]} 61. h6 {[%emt 0:01:02]} gxh6 {[%emt 0:00:39]} 62. gxh6 {[%emt 0:00:02]} Kf8 {[%emt 0:01:15]} 63. Be6 {[%emt 0:00:12]} Nc5 {[%emt 0:00:25]} 64. Kg6 {[%emt 0:00:17]} Nd3 {[%emt 0:01:44]} 65. h7 {[%emt 0:00:05]} Ne5+ {[%emt 0:00:31]} 66. Kh6 {[%emt 0:00:21]} 1-0

[Event "69th GRE-ch 2019"]
[Site "Thessaloniki"]
[Date "2019.11.22"]
[Round "3.1"]
[White "Ioannidis, Evgenios"]
[Black "Giannoulakis, Lampros"]
[Result "1/2-1/2"]
[ECO "B53"]
[WhiteElo "2379"]
[BlackElo "2227"]
[Annotator "NA"]
[PlyCount "89"]
[EventDate "2019.11.20"]
[EventType "tourn"]
[EventCountry "GRE"]
[SourceTitle "playchess.com"]
[Source "ChessBase"]
[SourceQuality "1"]
[TimeControl "40/5400+30:1800+30"]

1. e4 {[%emt 0:00:00]} c5 {[%emt 0:00:02]} 2. Nf3 {[%emt 0:00:00]} d6 {[%emt 0:00:08]} 3. d4 {[%emt 0:00:18]} cxd4 {[%emt 0:00:17]} 4. Qxd4 {[%emt 0:00:20]} Nc6 {[%emt 0:00:24]} 5. Qe3 {[%emt 0:00:26]} Nf6 {[%emt 0:04:45]} 6. Be2 {[%emt 0:00:27]} Bg4 {[%emt 0:04:43]} 7. O-O {[%emt 0:05:55]} g6 {[%emt 0:03:19]} 8. c4 {[%emt 0:02:30]} Bg7 {[%emt 0:01:08]} 9. Nc3 {[%emt 0:00:16]} O-O {[%emt 0:00:53]} 10. Rd1 {[%emt 0:01:08]} Qc7 {[%emt 0:19:23]} 11. Rb1 {[%emt 0:08:22]} Rac8 {[%emt 0:02:34]} 12. b3 {[%emt 0:03:36]} a6 {[%emt 0:07:58]} 13. Bb2 {[%emt 0:11:48]} Qa5 {[%emt 0:07:29]} 14. Nd5 {[%emt 0:27:15]} Bxf3 {[%emt 0:19:37]} 15. Bxf3 {[%emt 0:01:02]} Nxd5 {[%emt 0:01:32]} 16. exd5 {[%emt 0:00:07]} Ne5 {[%emt 0:01:16]} 17. Be2 {[%emt 0:02:09]} Rfe8 {[%emt 0:01:51]} 18. a3 {[%emt 0:06:52]} Qc7 {[%emt 0:05:17]} 19. Bd4 {[%emt 0:04:09]} Nd7 {[%emt 0:03:47]} 20. Bg4 {[%emt 0:03:33]} Bxd4 {[%emt 0:04:12]} 21. Rxd4 {[%emt 0:01:00]} Rb8 {[%emt 0:00:28]} 22. Bxd7 {[%emt 0:03:27]} Qxd7 {[%emt 0:00:04]} 23. Re1 {[%emt 0:03:10]} e5 {[%emt 0:01:03]} 24. dxe6 {[%emt 0:00:38]} Rxe6 {[%emt 0:00:05]} 25. Qd2 {[%emt 0:04:09]} Rxe1+ {[%emt 0:00:49]} 26. Qxe1 {[%emt 0:00:06]} Re8 {[%emt 0:01:29]} 27. Qd2 {[%emt 0:04:51]} Re6 {[%emt 0:00:19]} 28. h4 {[%emt 0:00:47]} Qe7 {[%emt 0:00:58]} 29. g3 h5 {[%emt 0:01:46]} 30. Kg2 {[%emt 0:00:13]} Kg7 {[%emt 0:02:08]} 31. Qd3 {[%emt 0:01:04]} Qf6 {[%emt 0:01:51]} 32. Rf4 {[%emt 0:00:53]} Qe5 {[%emt 0:00:38]} 33. Qf3 {[%emt 0:01:20]} Re7 {[%emt 0:00:12]} 34. b4 {[%emt 0:00:39]} Rc7 {[%emt 0:02:40]} 35. Re4 {[%emt 0:01:19]} Qf6 {[%emt 0:01:20]} 36. Qe3 {[%emt 0:00:05]} Qf5 {[%emt 0:00:58]} 37. Qd4+ {[%emt 0:01:26]} Qf6 {[%emt 0:00:05]} 38. Qd5 {[%emt 0:02:35]} Re7 {[%emt 0:00:20]} 39. Rd4 {[%emt 0:00:23]} Re6 {[%emt 0:00:40]} 40. Re4 {[%emt 0:00:00]} Rxe4 {[%emt 0:00:00]} 41. Qxe4 {[%emt 0:01:53]} Qe6 {[%emt 0:14:59]} 42. Kf3 {[%emt 0:05:24]} Qf6+ {[%emt 0:01:45]} 43. Kg2 {[%emt 0:05:18]} Qe6 {[%emt 0:00:04]} 44. Kf3 {[%emt 0:06:34]} Qf6+ {[%emt 0:00:04]} 45. Kg2 {[%emt 0:02:55]} 1/2-1/2

[Event "69th GRE-ch 2019"]
[Site "Thessaloniki"]
[Date "2019.11.22"]
[Round "3.2"]
[White "Malikentzos, Sotirios"]
[Black "Kanakaris, Georgios"]
[Result "1/2-1/2"]
[ECO "D76"]
[WhiteElo "2432"]
[BlackElo "2395"]
[Annotator "NA"]
[PlyCount "94"]
[EventDate "2019.11.20"]
[EventType "tourn"]
[EventCountry "GRE"]
[SourceTitle "playchess.com"]
[Source "ChessBase"]
[SourceQuality "1"]
[TimeControl "40/5400+30:1800+30"]

1. Nf3 {[%emt 0:00:50]} g6 {[%emt 0:00:00]} 2. d4 {[%emt 0:00:07]} Nf6 {[%emt 0:00:24]} 3. c4 {[%emt 0:00:12]} Bg7 {[%emt 0:00:06]} 4. g3 {[%emt 0:00:04]} O-O {[%emt 0:00:11]} 5. Bg2 {[%emt 0:00:06]} d5 {[%emt 0:00:09]} 6. cxd5 {[%emt 0:00:09]} Nxd5 {[%emt 0:00:06]} 7. O-O {[%emt 0:00:05]} Nb6 {[%emt 0:00:35]} 8. Nc3 {[%emt 0:01:37]} Nc6 {[%emt 0:00:21]} 9. e3 {[%emt 0:00:18]} a5 {[%emt 0:01:30]} 10. Qe2 {[%emt 0:03:06]} Be6 {[%emt 0:07:56]} 11. Rd1 {[%emt 0:06:31]} Bc4 {[%emt 0:00:16]} 12. Qc2 {[%emt 0:01:25]} a4 {[%emt 0:09:05]} 13. Ne5 {[%emt 0:12:39]} Bxe5 {[%emt 0:28:44]} 14. dxe5 {[%emt 0:08:03]} Qc8 {[%emt 0:00:14]} 15. e4 {[%emt 0:07:48]} Nb4 {[%emt 0:00:15]} 16. Qb1 {[%emt 0:06:29]} Rd8 {[%emt 0:04:04]} 17. Be3 {[%emt 0:05:51]} Qe6 {[%emt 0:05:17]} 18. f4 {[%emt 0:05:51]} Rd3 {[%emt 0:17:01]} 19. Qc1 {[%emt 0:13:09]} Rad8 {[%emt 0:04:53]} 20. Rxd3 {[%emt 0:08:05]} Nxd3 {[%emt 0:00:12]} 21. Qc2 {[%emt 0:01:09]} Nb4 {[%emt 0:08:31]} 22. Qf2 {[%emt 0:00:03]} Nd3 {[%emt 0:00:09]} 23. Qc2 {[%emt 0:00:48]} Nb4 {[%emt 0:01:08]} 24. Qf2 {[%emt 0:00:05]} Nd3 {[%emt 0:00:06]} 25. Qd2 {[%emt 0:01:01]} Rd7 {[%emt 0:00:26]} 26. Qc2 {[%emt 0:04:40]} Qc6 {[%emt 0:04:41]} 27. Rd1 {[%emt 0:02:22]} Nb4 {[%emt 0:00:34]} 28. Qb1 {[%emt 0:01:25]} Bd3 {[%emt 0:03:55]} 29. Qc1 {[%emt 0:00:04]} e6 {[%emt 0:00:44]} 30. a3 {[%emt 0:02:47]} Nc2 {[%emt 0:00:04]} 31. Bf2 {[%emt 0:00:39]} Qc4 {[%emt 0:00:55]} 32. Kh1 {[%emt 0:04:42]} Nd4 {[%emt 0:01:06]} 33. Qe3 {[%emt 0:00:29]} Nb3 {[%emt 0:00:16]} 34. Qe1 {[%emt 0:00:51]} Nc5 {[%emt 0:00:44]} 35. Rc1 {[%emt 0:00:55]} Nb3 {[%emt 0:00:13]} 36. Rd1 {[%emt 0:00:02]} Nc5 {[%emt 0:00:34]} 37. Kg1 {[%emt 0:01:16]} Bc2 {[%emt 0:01:09]} 38. Rxd7 {[%emt 0:00:25]} Nbxd7 {[%emt 0:00:04]} 39. Qd2 Qd3 {[%emt 0:00:16]} 40. Qc1 {[%emt 0:00:00]} Bb3 {[%emt 0:00:00]} 41. f5 {[%emt 0:16:28]} Qc2 {[%emt 0:16:42]} 42. Qg5 {[%emt 0:00:20]} Nd3 {[%emt 0:02:47]} 43. Qd8+ {[%emt 0:01:57]} Nf8 {[%emt 0:00:03]} 44. Be3 {[%emt 0:00:53]} Ne1 {[%emt 0:06:00]} 45. Bf2 {[%emt 0:03:31]} Nd3 {[%emt 0:05:00]} 46. Be3 {[%emt 0:00:02]} Ne1 {[%emt 0:00:05]} 47. Bf2 {[%emt 0:00:59]} Nd3 {[%emt 0:00:18]} 1/2-1/2

[Event "69th GRE-ch 2019"]
[Site "Thessaloniki"]
[Date "2019.11.22"]
[Round "3.3"]
[White "Koutoukidis, Panagiotis"]
[Black "Megalios, Konstantinos"]
[Result "1/2-1/2"]
[ECO "D31"]
[WhiteElo "2412"]
[BlackElo "2386"]
[Annotator "NA"]
[PlyCount "68"]
[EventDate "2019.11.20"]
[EventType "tourn"]
[EventCountry "GRE"]
[SourceTitle "playchess.com"]
[Source "ChessBase"]
[SourceQuality "1"]
[TimeControl "40/5400+30:1800+30"]

1. c4 {[%emt 0:00:00]} e6 {[%emt 0:03:29]} 2. Nc3 {[%emt 0:00:00]} d5 {[%emt 0:02:15]} 3. d4 {[%emt 0:00:13]} a6 {[%emt 0:02:49]} 4. cxd5 {[%emt 0:03:25]} exd5 {[%emt 0:00:21]} 5. Nf3 {[%emt 0:00:05]} Nf6 {[%emt 0:00:29]} 6. Bg5 {[%emt 0:00:34]} Be6 {[%emt 0:00:23]} 7. e3 {[%emt 0:02:13]} Nbd7 {[%emt 0:00:56]} 8. Bd3 {[%emt 0:01:05]} Bd6 {[%emt 0:03:29]} 9. Qc2 {[%emt 0:01:27]} h6 {[%emt 0:03:12]} 10. Bf4 {[%emt 0:01:07]} Qe7 {[%emt 0:03:44]} 11. O-O {[%emt 0:05:45]} O-O {[%emt 0:00:50]} 12. h3 {[%emt 0:03:01]} Rac8 {[%emt 0:13:57]} 13. Ne2 {[%emt 0:16:41]} Rfe8 {[%emt 0:15:44]} 14. Rac1 {[%emt 0:03:16]} c5 {[%emt 0:05:15]} 15. Bxd6 {[%emt 0:04:26]} Qxd6 {[%emt 0:00:06]} 16. dxc5 {[%emt 0:00:14]} Nxc5 {[%emt 0:01:32]} 17. Ned4 {[%emt 0:05:02]} Nfe4 {[%emt 0:05:57]} 18. Nxe6 {[%emt 0:09:28]} Qxe6 {[%emt 0:02:33]} 19. Nd4 {[%emt 0:02:45]} Qd7 {[%emt 0:01:02]} 20. Qe2 {[%emt 0:07:23]} Ne6 {[%emt 0:10:55]} 21. Nxe6 {[%emt 0:00:49]} Qxe6 {[%emt 0:01:49]} 22. Qg4 {[%emt 0:06:24]} Qxg4 {[%emt 0:07:44]} 23. hxg4 {[%emt 0:00:04]} Kf8 {[%emt 0:00:23]} 24. f3 {[%emt 0:08:12]} Nd2 {[%emt 0:04:43]} 25. Rxc8 {[%emt 0:00:14]} Rxc8 {[%emt 0:00:07]} 26. Re1 {[%emt 0:13:31]} Nc4 {[%emt 0:00:54]} 27. Re2 {[%emt 0:00:28]} Ne5 {[%emt 0:01:09]} 28. Bc2 {[%emt 0:00:17]} Ke7 {[%emt 0:01:29]} 29. Kf2 {[%emt 0:00:18]} Kd6 {[%emt 0:00:47]} 30. b3 {[%emt 0:01:15]} Rc3 {[%emt 0:00:43]} 31. Rd2 {[%emt 0:00:58]} Kc5 {[%emt 0:01:28]} 32. Ke2 {[%emt 0:00:28]} Nc6 {[%emt 0:01:30]} 33. Bd3 {[%emt 0:03:26]} Nb4 {[%emt 0:00:50]} 34. Bh7 {[%emt 0:01:26]} Nc6 {[%emt 0:02:09]} 1/2-1/2

[Event "69th GRE-ch 2019"]
[Site "Thessaloniki"]
[Date "2019.11.22"]
[Round "3.4"]
[White "Kalogeris, Ioannis"]
[Black "Kourkoulos-Arditis, Stamatis"]
[Result "0-1"]
[ECO "C15"]
[WhiteElo "2330"]
[BlackElo "2457"]
[Annotator "ChessBase"]
[PlyCount "56"]
[EventDate "2019.11.20"]
[EventType "tourn"]
[EventCountry "GRE"]
[SourceTitle "playchess.com"]
[Source "ChessBase"]
[SourceQuality "1"]
[TimeControl "40/5400+30:1800+30"]

1. e4 {[%emt 0:00:00]} e6 {[%emt 0:00:34]} 2. d4 {[%emt 0:00:00]} d5 {[%emt 0:00:04]} 3. Nc3 {[%emt 0:00:00]} Bb4 {[%emt 0:00:05]} 4. Nge2 {[%emt 0:00:04]} dxe4 {[%emt 0:00:09]} 5. a3 {[%emt 0:00:08]} Be7 {[%emt 0:00:04]} 6. Nxe4 {[%emt 0:00:53]} Nf6 {[%emt 0:00:07]} 7. Qd3 {[%emt 0:01:16]} Bd7 {[%emt 0:02:03]} 8. Be3 {[%emt 0:01:38]} Nxe4 {[%emt 0:05:03]} 9. Qxe4 {[%emt 0:00:02]} Bc6 {[%emt 0:00:05]} 10. Qg4 {[%emt 0:06:23]} g6 {[%emt 0:00:32]} 11. Bh6 {[%emt 0:03:03]} Nd7 {[%emt 0:00:31]} 12. Rd1 {[%emt 0:03:39]} Nf6 {[%emt 0:03:56]} 13. Qh3 {[%emt 0:01:32]} Qd7 {[%emt 0:15:43]} 14. Nf4 {[%emt 0:14:22]} O-O-O {[%emt 0:02:11]} 15. Be2 {[%emt 0:01:39]} Rhg8 {[%emt 0:10:58]} 16. O-O {[%emt 0:32:53]} g5 {[%emt 0:05:52]} 17. Nd3 {[%emt 0:02:46]} Qxd4 {[%emt 0:00:18]} 18. Nb4 {[%emt 0:00:49]} Qb6 {[%emt 0:00:29]} 19. Nxc6 {[%emt 0:02:41]} Qxc6 {[%emt 0:00:04]} 20. Qe3 {[%emt 0:09:30]} Rxd1 {[%emt 0:10:11]} 21. Rxd1 {[%emt 0:00:54]} Qc5 {[%emt 0:00:07]} 22. Qd2 {[%emt 0:08:50]} Bd6 {[%emt 0:05:08]} 23. b4 {[%emt 0:02:37]} Qe5 {[%emt 0:00:20]} 24. g3 {[%emt 0:00:02]} Ne4 {[%emt 0:04:30]} 25. Qd4 {[%emt 0:01:45]} Nc3 {[%emt 0:04:56]} 26. Qxe5 {[%emt 0:00:04]} Bxe5 {[%emt 0:00:04]} 27. Re1 {[%emt 0:00:09]} Nxe2+ {[%emt 0:00:19]} 28. Rxe2 {[%emt 0:00:01]} Bd6 {[%emt 0:00:06]} 0-1

[Event "69th GRE-ch 2019"]
[Site "Thessaloniki"]
[Date "2019.11.22"]
[Round "3.5"]
[White "Papadopoulos, Georgios"]
[Black "Mitsis, Georgios"]
[Result "0-1"]
[ECO "D35"]
[WhiteElo "2378"]
[BlackElo "2348"]
[Annotator "ChessBase"]
[PlyCount "74"]
[EventDate "2019.11.20"]
[EventType "tourn"]
[EventCountry "GRE"]
[SourceTitle "playchess.com"]
[Source "ChessBase"]
[SourceQuality "1"]
[TimeControl "40/5400+30:1800+30"]

1. d4 {[%emt 0:00:00]} Nf6 {[%emt 0:00:00]} 2. c4 {[%emt 0:00:00]} e6 {[%emt 0:00:00]} 3. Nc3 {[%emt 0:00:00]} d5 {[%emt 0:00:37]} 4. cxd5 {[%emt 0:00:00]} exd5 {[%emt 0:00:13]} 5. Bg5 {[%emt 0:00:07]} Be7 {[%emt 0:00:40]} 6. e3 {[%emt 0:00:34]} c6 {[%emt 0:00:41]} 7. Qc2 {[%emt 0:02:40]} Nbd7 {[%emt 0:00:59]} 8. Bd3 {[%emt 0:00:28]} Nf8 {[%emt 0:00:33]} 9. Nge2 {[%emt 0:10:09]} Ne6 {[%emt 0:00:46]} 10. Bh4 {[%emt 0:00:19]} g6 {[%emt 0:00:46]} 11. O-O-O {[%emt 0:21:53]} a5 {[%emt 0:02:12]} 12. f3 {[%emt 0:03:53]} a4 {[%emt 0:03:28]} 13. Nxa4 {[%emt 0:20:38]} O-O {[%emt 0:02:32]} 14. a3 {[%emt 0:01:47]} b6 {[%emt 0:06:33]} 15. Nac3 {[%emt 0:05:56]} Bb7 {[%emt 0:22:04]} 16. Kb1 {[%emt 0:08:53]} c5 {[%emt 0:01:56]} 17. Bb5 {[%emt 0:07:34]} Nc7 {[%emt 0:06:28]} 18. Nf4 {[%emt 0:00:59]} Ra5 {[%emt 0:06:36]} 19. Be2 {[%emt 0:02:30]} c4 {[%emt 0:02:32]} 20. Bxf6 {[%emt 0:01:19]} Bxf6 {[%emt 0:00:19]} 21. e4 {[%emt 0:00:03]} b5 {[%emt 0:01:20]} 22. Nfxd5 {[%emt 0:03:08]} Bxd5 {[%emt 0:00:57]} 23. exd5 {[%emt 0:00:49]} Nxd5 {[%emt 0:00:16]} 24. Nxd5 {[%emt 0:02:10]} Qxd5 {[%emt 0:00:05]} 25. h4 {[%emt 0:01:35]} Rc8 {[%emt 0:01:54]} 26. h5 {[%emt 0:01:27]} c3 {[%emt 0:02:45]} 27. hxg6 {[%emt 0:00:04]} hxg6 {[%emt 0:00:07]} 28. Bd3 {[%emt 0:00:49]} b4 {[%emt 0:03:23]} 29. Be4 {[%emt 0:00:20]} Qb5 {[%emt 0:01:31]} 30. Bxg6 {[%emt 0:02:34]} b3 {[%emt 0:00:25]} 31. Bxf7+ {[%emt 0:00:04]} Kxf7 {[%emt 0:00:35]} 32. Qh7+ {[%emt 0:00:09]} Bg7 {[%emt 0:00:07]} 33. Rde1 {[%emt 0:00:51]} c2+ {[%emt 0:00:18]} 34. Ka1 {[%emt 0:00:45]} Rxa3+ {[%emt 0:00:18]} 35. bxa3 {[%emt 0:00:01]} b2+ {[%emt 0:00:10]} 36. Ka2 {[%emt 0:00:01]} Qc4+ {[%emt 0:00:53]} 37. Kxb2 {[%emt 0:00:05]} Qxd4+ {[%emt 0:00:47]} 0-1

[Event "69th GRE-ch 2019"]
[Site "Thessaloniki"]
[Date "2019.11.23"]
[Round "4.1"]
[White "Giannoulakis, Lampros"]
[Black "Mitsis, Georgios"]
[Result "1-0"]
[ECO "D37"]
[WhiteElo "2227"]
[BlackElo "2348"]
[Annotator "NA"]
[PlyCount "89"]
[EventDate "2019.11.20"]
[EventType "tourn"]
[EventCountry "GRE"]
[SourceTitle "playchess.com"]
[Source "ChessBase"]
[SourceQuality "1"]
[TimeControl "40/5400+30:1800+30"]

1. d4 {[%emt 0:00:04]} Nf6 {[%emt 0:00:00]} 2. c4 {[%emt 0:00:11]} e6 {[%emt 0:00:00]} 3. Nf3 {[%emt 0:00:10]} d5 {[%emt 0:00:19]} 4. Nc3 {[%emt 0:00:32]} Nbd7 {[%emt 0:00:54]} 5. Bf4 {[%emt 0:01:47]} dxc4 {[%emt 0:00:52]} 6. e4 {[%emt 0:26:04]} Bb4 {[%emt 0:01:40]} 7. Nd2 {[%emt 0:08:42]} O-O {[%emt 0:11:51]} 8. Bxc4 {[%emt 0:07:21]} Nb6 {[%emt 0:00:56]} 9. Qb3 {[%emt 0:03:34]} c5 {[%emt 0:02:42]} 10. dxc5 {[%emt 0:08:20]} Bxc5 {[%emt 0:00:17]} 11. Rd1 {[%emt 0:02:20]} Nh5 {[%emt 0:39:30]} 12. Nf3 {[%emt 0:02:37]} Qe7 {[%emt 0:02:30]} 13. Bg5 {[%emt 0:03:17]} f6 {[%emt 0:09:42]} 14. Bc1 {[%emt 0:02:03]} g6 {[%emt 0:04:34]} 15. O-O {[%emt 0:01:41]} Bd7 {[%emt 0:01:52]} 16. Be2 {[%emt 0:02:21]} a5 {[%emt 0:02:12]} 17. a4 {[%emt 0:00:37]} Bc6 {[%emt 0:04:41]} 18. Nd4 {[%emt 0:01:30]} Ng7 {[%emt 0:00:16]} 19. Bb5 {[%emt 0:03:45]} Rfc8 {[%emt 0:02:37]} 20. Be3 {[%emt 0:00:30]} Kh8 {[%emt 0:01:01]} 21. Rd2 {[%emt 0:10:39]} e5 {[%emt 0:06:17]} 22. Nc2 {[%emt 0:00:40]} Rab8 {[%emt 0:02:16]} 23. Rfd1 {[%emt 0:01:03]} Ne6 {[%emt 0:00:28]} 24. Nd5 {[%emt 0:02:33]} Nxd5 {[%emt 0:02:19]} 25. exd5 {[%emt 0:00:27]} Bxb5 {[%emt 0:00:27]} 26. Qxb5 {[%emt 0:06:16]} Bxe3 {[%emt 0:00:07]} 27. fxe3 {[%emt 0:00:28]} Nc5 {[%emt 0:00:13]} 28. d6 {[%emt 0:00:33]} Qd7 {[%emt 0:01:43]} 29. Na3 {[%emt 0:00:18]} Rc6 {[%emt 0:01:18]} 30. Nc4 {[%emt 0:01:30]} Rbc8 {[%emt 0:00:42]} 31. Nxa5 {[%emt 0:01:54]} Ne4 {[%emt 0:00:09]} 32. Nxc6 {[%emt 0:00:39]} bxc6 {[%emt 0:00:18]} 33. Qc4 {[%emt 0:00:44]} Nxd2 {[%emt 0:00:10]} 34. Rxd2 {[%emt 0:00:04]} Ra8 {[%emt 0:00:20]} 35. b3 {[%emt 0:00:09]} Kg7 {[%emt 0:00:15]} 36. h3 {[%emt 0:00:16]} h5 {[%emt 0:00:32]} 37. Qc5 {[%emt 0:00:40]} Kf7 {[%emt 0:00:27]} 38. Qc4+ {[%emt 0:01:12]} Kg7 {[%emt 0:00:17]} 39. Qc5 {[%emt 0:00:02]} Kf7 {[%emt 0:00:31]} 40. a5 {[%emt 0:00:00]} g5 {[%emt 0:00:00]} 41. b4 {[%emt 0:06:37]} h4 {[%emt 0:00:48]} 42. Rc2 {[%emt 0:00:59]} Rd8 {[%emt 0:01:24]} 43. Qxc6 {[%emt 0:00:43]} Qxd6 {[%emt 0:00:06]} 44. Qxd6 {[%emt 0:03:31]} Rxd6 {[%emt 0:00:15]} 45. Ra2 {[%emt 0:01:28]} 1-0

[Event "69th GRE-ch 2019"]
[Site "Thessaloniki"]
[Date "2019.11.23"]
[Round "4.2"]
[White "Kourkoulos-Arditis, Stamatis"]
[Black "Papadopoulos, Georgios"]
[Result "1-0"]
[ECO "E63"]
[WhiteElo "2457"]
[BlackElo "2378"]
[Annotator "ChessBase"]
[PlyCount "79"]
[EventDate "2019.11.20"]
[EventType "tourn"]
[EventCountry "GRE"]
[SourceTitle "playchess.com"]
[Source "ChessBase"]
[SourceQuality "1"]
[TimeControl "40/5400+30:1800+30"]

1. d4 {[%emt 0:00:00]} Nf6 {[%emt 0:01:35]} 2. c4 {[%emt 0:00:00]} g6 {[%emt 0:00:09]} 3. Nf3 {[%emt 0:00:00]} Bg7 {[%emt 0:00:06]} 4. g3 {[%emt 0:00:00]} O-O {[%emt 0:00:06]} 5. Bg2 {[%emt 0:00:00]} d6 {[%emt 0:00:05]} 6. Nc3 {[%emt 0:00:00]} Nc6 {[%emt 0:00:08]} 7. O-O {[%emt 0:00:03]} a6 {[%emt 0:00:01]} 8. b3 {[%emt 0:00:23]} Rb8 {[%emt 0:00:05]} 9. Nd5 {[%emt 0:00:08]} Nxd5 {[%emt 0:00:06]} 10. cxd5 {[%emt 0:00:07]} Nb4 {[%emt 0:00:02]} 11. e4 {[%emt 0:00:38]} f5 {[%emt 0:00:04]} 12. Ng5 {[%emt 0:01:42]} c5 {[%emt 0:00:56]} 13. dxc6 {[%emt 0:00:28]} Nxc6 {[%emt 0:00:29]} 14. exf5 {[%emt 0:00:34]} Bxf5 {[%emt 0:01:36]} 15. Be3 {[%emt 0:00:16]} d5 {[%emt 0:01:04]} 16. g4 {[%emt 0:04:21]} Bc8 {[%emt 0:00:07]} 17. h3 {[%emt 0:00:12]} Qd6 {[%emt 0:01:07]} 18. f4 {[%emt 0:13:31]} h6 {[%emt 0:18:15]} 19. Nf3 {[%emt 0:00:13]} Rxf4 {[%emt 0:01:09]} 20. Bxf4 {[%emt 0:01:17]} Qxf4 {[%emt 0:00:09]} 21. Kh1 {[%emt 0:00:06]} e6 {[%emt 0:12:43]} 22. Rc1 {[%emt 0:12:29]} Qd6 {[%emt 0:04:55]} 23. Qc2 {[%emt 0:07:17]} Bd7 {[%emt 0:21:28]} 24. Qxg6 {[%emt 0:01:53]} Ne7 {[%emt 0:03:39]} 25. Qc2 {[%emt 0:00:08]} Bb5 {[%emt 0:01:39]} 26. Rfe1 {[%emt 0:00:42]} Rc8 {[%emt 0:02:50]} 27. Qd2 {[%emt 0:00:30]} Rxc1 {[%emt 0:00:40]} 28. Qxc1 {[%emt 0:00:11]} Ng6 {[%emt 0:18:53]} 29. Qc8+ {[%emt 0:01:49]} Kf7 {[%emt 0:00:22]} 30. Qxb7+ {[%emt 0:04:31]} Kg8 {[%emt 0:00:01]} 31. Qc8+ {[%emt 0:02:16]} Kf7 {[%emt 0:00:05]} 32. Qc2 {[%emt 0:01:05]} Qg3 {[%emt 0:05:33]} 33. a4 {[%emt 0:02:49]} Nh4 {[%emt 0:00:57]} 34. Rc1 {[%emt 0:00:09]} Kg8 {[%emt 0:03:08]} 35. Nxh4 {[%emt 0:00:15]} Bd3 {[%emt 0:00:17]} 36. Qc8+ {[%emt 0:00:36]} Kh7 {[%emt 0:00:23]} 37. Qc3 {[%emt 0:00:22]} e5 {[%emt 0:02:39]} 38. Nf5 {[%emt 0:01:00]} exd4 {[%emt 0:00:06]} 39. Nxg3 {[%emt 0:00:13]} dxc3 {[%emt 0:00:01]} 40. Bxd5 {[%emt 0:00:00]} 1-0